[Event "Titled Tuesday Blitz March 21 Early 2023"]
[White "Bethke, Richard"]
[Black "Fule, Simon"]
[WhiteFideId "12959243"]
[BlackFideId "787515"]
[WhiteElo "2369"]
[BlackElo "2375"]
[Result "0-1"]
[Round "09"]
[TimeControl "180+2"]
[Date "2023.03.21"]
[WhiteClock "0:00:45"]
[BlackClock "0:00:10"]

1. e4 {[%clk 0:03:00]}  e5 {[%clk 0:02:58]} 2. Nf3 {[%clk 0:02:59]}  Nc6 {[%clk 0:02:56]} 3. Bc4 {[%clk 0:02:59]}  Nf6 {[%clk 0:02:56]} 4. d3 {[%clk 0:02:57]}  h6 {[%clk 0:02:56]} 5. O-O {[%clk 0:02:54]}  d6 {[%clk 0:02:56]} 6. c3 {[%clk 0:02:54]}  g5 {[%clk 0:02:56]} 7. d4 {[%clk 0:02:54]}  g4 {[%clk 0:02:52]} 8. dxe5 {[%clk 0:02:46]}  gxf3 {[%clk 0:02:51]} 9. exf6 {[%clk 0:02:46]}  Ne5 {[%clk 0:02:51]} 10. Bb3 {[%clk 0:02:38]}  Qxf6 {[%clk 0:02:50]} 11. Re1 {[%clk 0:02:28]}  Qg6 {[%clk 0:02:11]} 12. g3 {[%clk 0:02:24]}  Qg4 {[%clk 0:02:06]} 13. Kh1 {[%clk 0:02:24]}  h5 {[%clk 0:02:01]} 14. Rg1 {[%clk 0:02:18]}  h4 {[%clk 0:02:00]} 15. Bf4 {[%clk 0:02:16]}  hxg3 {[%clk 0:01:52]} 16. Bxg3 {[%clk 0:02:17]}  Qh5 {[%clk 0:01:45]} 17. Nd2 {[%clk 0:02:14]}  Bh3 {[%clk 0:01:27]} 18. Bxe5 {[%clk 0:01:56]}  Bg2+ {[%clk 0:01:26]} 19. Rxg2 {[%clk 0:01:56]}  fxg2+ {[%clk 0:01:27]} 20. Kg1 {[%clk 0:01:55]}  Qxe5 {[%clk 0:01:26]} 21. Nf3 {[%clk 0:01:55]}  Qf4 {[%clk 0:01:16]} 22. Qd5 {[%clk 0:01:44]}  c6 {[%clk 0:00:47]} 23. Qd3 {[%clk 0:01:43]}  O-O-O {[%clk 0:00:43]} 24. a4 {[%clk 0:01:39]}  Bg7 {[%clk 0:00:38]} 25. a5 {[%clk 0:01:37]}  Be5 {[%clk 0:00:36]} 26. Kxg2 {[%clk 0:01:27]}  Rdg8+ {[%clk 0:00:27]} 27. Kf1 {[%clk 0:01:27]}  Rh3 {[%clk 0:00:24]} 28. Ke2 {[%clk 0:01:27]}  Re8 {[%clk 0:00:17]} 29. a6 {[%clk 0:01:20]}  b6 {[%clk 0:00:17]} 30. Qe3 {[%clk 0:01:15]}  f5 {[%clk 0:00:15]} 31. exf5 {[%clk 0:01:12]}  Qxf5 {[%clk 0:00:13]} 32. Rg1 {[%clk 0:01:07]}  Rxf3 {[%clk 0:00:11]} 33. Qxf3 {[%clk 0:00:59]}  Bxh2+ {[%clk 0:00:11]} 34. Kd2 {[%clk 0:00:49]}  Qxf3 {[%clk 0:00:11]} 35. Rg7 {[%clk 0:00:49]}  Qxf2+ {[%clk 0:00:11]} 36. Kd3 {[%clk 0:00:49]}  Qe3+ {[%clk 0:00:10]} 37. Kc4 {[%clk 0:00:49]}  Qc5+ {[%clk 0:00:11]} 38. Kd3 {[%clk 0:00:49]}  Qf5+ {[%clk 0:00:11]} 39. Kd2 {[%clk 0:00:47]}  Bf4+ {[%clk 0:00:10]} 40. Kd1 {[%clk 0:00:45]}  Qd3# {[%clk 0:00:10]} 0-1


[Site "https://www.chess.com"]

[Event "Titled Tuesday Blitz March 21 Early 2023"]
[White "Horak, Martin"]
[Black "Buscar, Michael"]
[WhiteFideId "367095"]
[BlackFideId "2603616"]
[WhiteElo "2091"]
[BlackElo "2010"]
[Result "1-0"]
[Round "09"]
[TimeControl "180+2"]
[Date "2023.03.21"]
[WhiteClock "0:00:04"]
[BlackClock "0:00:01"]

1. e4 {[%clk 0:03:00]}  c5 {[%clk 0:02:59]} 2. Nf3 {[%clk 0:03:00]}  Nc6 {[%clk 0:03:00]} 3. d4 {[%clk 0:03:00]}  cxd4 {[%clk 0:03:01]} 4. Nxd4 {[%clk 0:03:00]}  Nf6 {[%clk 0:03:02]} 5. Nc3 {[%clk 0:03:00]}  e5 {[%clk 0:03:02]} 6. Ndb5 {[%clk 0:03:00]}  h6 {[%clk 0:03:03]} 7. Nd6+ {[%clk 0:02:57]}  Bxd6 {[%clk 0:03:03]} 8. Qxd6 {[%clk 0:02:58]}  Qe7 {[%clk 0:03:04]} 9. Qxe7+ {[%clk 0:02:55]}  Kxe7 {[%clk 0:03:05]} 10. Bd3 {[%clk 0:02:39]}  Rd8 {[%clk 0:03:06]} 11. Bd2 {[%clk 0:02:10]}  d5 {[%clk 0:03:05]} 12. exd5 {[%clk 0:02:09]}  Nxd5 {[%clk 0:03:06]} 13. Nxd5+ {[%clk 0:02:06]}  Rxd5 {[%clk 0:03:06]} 14. a3 {[%clk 0:02:04]}  Be6 {[%clk 0:03:03]} 15. O-O-O {[%clk 0:02:02]}  Rad8 {[%clk 0:03:03]} 16. f4 {[%clk 0:01:35]}  exf4 {[%clk 0:02:54]} 17. Bxf4 {[%clk 0:01:34]}  Nd4 {[%clk 0:02:47]} 18. Rhe1 {[%clk 0:01:31]}  Kf8 {[%clk 0:02:38]} 19. h3 {[%clk 0:01:25]}  Nb3+ {[%clk 0:02:24]} 20. Kb1 {[%clk 0:01:18]}  Nc5 {[%clk 0:02:23]} 21. Be2 {[%clk 0:01:15]}  Rxd1+ {[%clk 0:02:14]} 22. Rxd1 {[%clk 0:01:16]}  Rxd1+ {[%clk 0:02:13]} 23. Bxd1 {[%clk 0:01:17]}  b6 {[%clk 0:02:03]} 24. Bf3 {[%clk 0:01:08]}  Nd7 {[%clk 0:01:52]} 25. Kc1 {[%clk 0:01:04]}  Ke7 {[%clk 0:01:51]} 26. Kd2 {[%clk 0:01:03]}  Bf5 {[%clk 0:01:37]} 27. b4 {[%clk 0:00:43]}  g5 {[%clk 0:01:30]} 28. Bh2 {[%clk 0:00:36]}  Be6 {[%clk 0:01:26]} 29. Kd3 {[%clk 0:00:34]}  f5 {[%clk 0:01:25]} 30. c4 {[%clk 0:00:30]}  f4 {[%clk 0:01:25]} 31. Kd4 {[%clk 0:00:30]}  Kd6 {[%clk 0:01:00]} 32. Bg1 {[%clk 0:00:30]}  Kc7 {[%clk 0:00:44]} 33. Bf2 {[%clk 0:00:29]}  Kd6 {[%clk 0:00:30]} 34. Be1 {[%clk 0:00:25]}  Bf5 {[%clk 0:00:22]} 35. Bc3 {[%clk 0:00:21]}  Be6 {[%clk 0:00:17]} 36. Bb2 {[%clk 0:00:19]}  Bf7 {[%clk 0:00:17]} 37. a4 {[%clk 0:00:19]}  Bg6 {[%clk 0:00:12]} 38. Ba3 {[%clk 0:00:14]}  Kc7 {[%clk 0:00:13]} 39. a5 {[%clk 0:00:11]}  Bf7 {[%clk 0:00:12]} 40. a6 {[%clk 0:00:10]}  Nb8 {[%clk 0:00:07]} 41. b5 {[%clk 0:00:09]}  Nd7 {[%clk 0:00:08]} 42. Bc6 {[%clk 0:00:07]}  Nf6 {[%clk 0:00:04]} 43. Bf8 {[%clk 0:00:06]}  h5 {[%clk 0:00:03]} 44. Be7 {[%clk 0:00:06]}  Nh7 {[%clk 0:00:03]} 45. Be4 {[%clk 0:00:06]}  Bg8 {[%clk 0:00:03]} 46. Bxh7 {[%clk 0:00:06]}  Bxh7 {[%clk 0:00:03]} 47. Bxg5 {[%clk 0:00:06]}  f3 {[%clk 0:00:02]} 48. gxf3 {[%clk 0:00:06]}  Bf5 {[%clk 0:00:03]} 49. h4 {[%clk 0:00:06]}  Kd7 {[%clk 0:00:02]} 50. Bf4 {[%clk 0:00:06]}  Kc8 {[%clk 0:00:01]} 51. Be5 {[%clk 0:00:03]}  Bh3 {[%clk 0:00:01]} 52. f4 {[%clk 0:00:04]}  Be6 {[%clk 0:00:01]} 53. Bd6 {[%clk 0:00:04]}  Bf7 {[%clk 0:00:01]} 54. f5 {[%clk 0:00:04]}  Be8 {[%clk 0:00:01]} 55. f6 {[%clk 0:00:04]}  Bf7 {[%clk 0:00:02]} 56. Bf4 {[%clk 0:00:03]}  Be6 {[%clk 0:00:02]} 57. c5 {[%clk 0:00:03]}  bxc5+ {[%clk 0:00:01]} 58. Kxc5 {[%clk 0:00:04]} 1-0


[Site "https://www.chess.com"]

[Event "Titled Tuesday Blitz March 21 Early 2023"]
[White "Sovetbekova, Nurai"]
[Black "Aarav Dengla"]
[WhiteFideId "13801910"]
[BlackFideId "45059756"]
[WhiteElo "1857"]
[BlackElo "2285"]
[Result "1-0"]
[Round "09"]
[TimeControl "180+2"]
[Date "2023.03.21"]
[WhiteClock "0:00:08"]
[BlackClock "0:00:04"]

1. d4 {[%clk 0:03:00]}  d5 {[%clk 0:02:59]} 2. c4 {[%clk 0:03:00]}  e6 {[%clk 0:02:58]} 3. Nc3 {[%clk 0:03:00]}  a6 {[%clk 0:02:58]} 4. cxd5 {[%clk 0:02:58]}  exd5 {[%clk 0:02:59]} 5. Bf4 {[%clk 0:02:58]}  h6 {[%clk 0:02:56]} 6. e3 {[%clk 0:02:58]}  Nf6 {[%clk 0:02:55]} 7. Bd3 {[%clk 0:02:57]}  c5 {[%clk 0:02:55]} 8. dxc5 {[%clk 0:02:54]}  Bxc5 {[%clk 0:02:56]} 9. Nge2 {[%clk 0:02:54]}  Nc6 {[%clk 0:02:57]} 10. O-O {[%clk 0:02:53]}  O-O {[%clk 0:02:55]} 11. a3 {[%clk 0:02:43]}  d4 {[%clk 0:02:53]} 12. exd4 {[%clk 0:02:40]}  Nxd4 {[%clk 0:02:54]} 13. Nxd4 {[%clk 0:02:29]}  Bxd4 {[%clk 0:02:55]} 14. Qc2 {[%clk 0:02:21]}  Be6 {[%clk 0:02:42]} 15. Rfd1 {[%clk 0:02:16]}  Qb6 {[%clk 0:02:31]} 16. Bg3 {[%clk 0:01:57]}  Bb3 {[%clk 0:02:29]} 17. Qd2 {[%clk 0:01:42]}  Bxc3 {[%clk 0:02:25]} 18. Qxc3 {[%clk 0:01:40]}  Bxd1 {[%clk 0:02:26]} 19. Rxd1 {[%clk 0:01:40]}  Rac8 {[%clk 0:02:27]} 20. Qe5 {[%clk 0:01:33]}  Rfd8 {[%clk 0:02:27]} 21. Bh4 {[%clk 0:01:20]}  Rxd3 {[%clk 0:02:21]} 22. Re1 {[%clk 0:01:15]}  Qd4 {[%clk 0:02:15]} 23. Bxf6 {[%clk 0:01:09]}  gxf6 {[%clk 0:02:07]} 24. Qe2 {[%clk 0:01:09]}  Rd2 {[%clk 0:02:04]} 25. Qf3 {[%clk 0:01:06]}  Qxb2 {[%clk 0:02:00]} 26. Qg4+ {[%clk 0:00:59]}  Kh8 {[%clk 0:01:53]} 27. Qxc8+ {[%clk 0:00:59]}  Kh7 {[%clk 0:01:46]} 28. Qf5+ {[%clk 0:00:56]}  Kg7 {[%clk 0:01:46]} 29. h3 {[%clk 0:00:41]}  Qb5 {[%clk 0:01:21]} 30. Qf3 {[%clk 0:00:21]}  Qd5 {[%clk 0:01:06]} 31. Qg3+ {[%clk 0:00:12]}  Qg5 {[%clk 0:01:06]} 32. Qb8 {[%clk 0:00:12]}  Qd5 {[%clk 0:00:46]} 33. Qg3+ {[%clk 0:00:05]}  Kh7 {[%clk 0:00:39]} 34. Re8 {[%clk 0:00:04]}  Qg5 {[%clk 0:00:10]} 35. Qf3 {[%clk 0:00:01]}  f5 {[%clk 0:00:08]} 36. Qc3 {[%clk 0:00:01]}  Rd1+ {[%clk 0:00:07]} 37. Kh2 {[%clk 0:00:01]}  Qg7 {[%clk 0:00:08]} 38. Qf3 {[%clk 0:00:01]}  Rd6 {[%clk 0:00:06]} 39. Qxf5+ {[%clk 0:00:01]}  Rg6 {[%clk 0:00:07]} 40. Qf3 {[%clk 0:00:01]}  Qf6 {[%clk 0:00:06]} 41. Re3 {[%clk 0:00:02]}  Qd6+ {[%clk 0:00:06]} 42. g3 {[%clk 0:00:02]}  Rf6 {[%clk 0:00:07]} 43. Qe2 {[%clk 0:00:02]}  Kg7 {[%clk 0:00:08]} 44. Qc2 {[%clk 0:00:02]}  Re6 {[%clk 0:00:08]} 45. Kg2 {[%clk 0:00:02]}  Rxe3 {[%clk 0:00:08]} 46. fxe3 {[%clk 0:00:03]}  b5 {[%clk 0:00:09]} 47. Qb2+ {[%clk 0:00:03]}  f6 {[%clk 0:00:08]} 48. Qc3 {[%clk 0:00:03]}  Qe5 {[%clk 0:00:08]} 49. Qd2 {[%clk 0:00:03]}  Qe4+ {[%clk 0:00:08]} 50. Kf2 {[%clk 0:00:03]}  Qe6 {[%clk 0:00:08]} 51. Kf3 {[%clk 0:00:02]}  Qxh3 {[%clk 0:00:08]} 52. Qd6 {[%clk 0:00:02]}  Qf5+ {[%clk 0:00:08]} 53. Kg2 {[%clk 0:00:02]}  a5 {[%clk 0:00:06]} 54. Qc7+ {[%clk 0:00:01]}  Kg6 {[%clk 0:00:04]} 55. Qxa5 {[%clk 0:00:02]}  Qc2+ {[%clk 0:00:03]} 56. Kf3 {[%clk 0:00:02]}  Qd1+ {[%clk 0:00:04]} 57. Kf2 {[%clk 0:00:02]}  Qd2+ {[%clk 0:00:04]} 58. Kf3 {[%clk 0:00:03]}  Qd5+ {[%clk 0:00:04]} 59. Kf2 {[%clk 0:00:03]}  Qf5+ {[%clk 0:00:04]} 60. Kg2 {[%clk 0:00:03]}  Kg5 {[%clk 0:00:04]} 61. Qd2 {[%clk 0:00:03]}  Qe4+ {[%clk 0:00:04]} 62. Kf2 {[%clk 0:00:03]}  Kg4 {[%clk 0:00:04]} 63. Qe2+ {[%clk 0:00:03]}  Kf5 {[%clk 0:00:04]} 64. Qxb5+ {[%clk 0:00:03]}  Kg4 {[%clk 0:00:04]} 65. Qd7+ {[%clk 0:00:03]}  Kg5 {[%clk 0:00:04]} 66. Qg7+ {[%clk 0:00:03]}  Kh5 {[%clk 0:00:03]} 67. Qxf6 {[%clk 0:00:03]}  Qc2+ {[%clk 0:00:04]} 68. Kf3 {[%clk 0:00:03]}  Qd1+ {[%clk 0:00:03]} 69. Kg2 {[%clk 0:00:03]}  Qe2+ {[%clk 0:00:02]} 70. Qf2 {[%clk 0:00:03]}  Qd3 {[%clk 0:00:03]} 71. Qf3+ {[%clk 0:00:03]}  Kg5 {[%clk 0:00:02]} 72. Qf4+ {[%clk 0:00:04]}  Kg6 {[%clk 0:00:02]} 73. Kf3 {[%clk 0:00:03]}  Qxa3 {[%clk 0:00:02]} 74. Qe4+ {[%clk 0:00:03]}  Kg5 {[%clk 0:00:03]} 75. Qe5+ {[%clk 0:00:04]}  Kg6 {[%clk 0:00:03]} 76. Qe6+ {[%clk 0:00:04]}  Kg5 {[%clk 0:00:03]} 77. Qd5+ {[%clk 0:00:03]}  Kg6 {[%clk 0:00:04]} 78. Qc6+ {[%clk 0:00:03]}  Kg5 {[%clk 0:00:03]} 79. Qd5+ {[%clk 0:00:04]}  Kg6 {[%clk 0:00:04]} 80. Qe4+ {[%clk 0:00:04]}  Kg5 {[%clk 0:00:04]} 81. Qf4+ {[%clk 0:00:04]}  Kg6 {[%clk 0:00:05]} 82. g4 {[%clk 0:00:04]}  Qa5 {[%clk 0:00:04]} 83. Qe4+ {[%clk 0:00:05]}  Kg5 {[%clk 0:00:03]} 84. Qe7+ {[%clk 0:00:04]}  Kg6 {[%clk 0:00:03]} 85. Qe6+ {[%clk 0:00:04]}  Kg5 {[%clk 0:00:04]} 86. Qe4 {[%clk 0:00:04]}  Qb5 {[%clk 0:00:02]} 87. Qf4+ {[%clk 0:00:04]}  Kg6 {[%clk 0:00:02]} 88. Kg3 {[%clk 0:00:05]}  Qb3 {[%clk 0:00:01]} 89. Qe4+ {[%clk 0:00:05]}  Kg5 {[%clk 0:00:02]} 90. Qe5+ {[%clk 0:00:05]}  Kg6 {[%clk 0:00:03]} 91. Kf4 {[%clk 0:00:05]}  Qb4+ {[%clk 0:00:03]} 92. Qe4+ {[%clk 0:00:05]}  Qxe4+ {[%clk 0:00:03]} 93. Kxe4 {[%clk 0:00:06]}  Kg5 {[%clk 0:00:03]} 94. Kf3 {[%clk 0:00:07]}  Kf6 {[%clk 0:00:04]} 95. Kf4 {[%clk 0:00:07]}  Ke6 {[%clk 0:00:05]} 96. e4 {[%clk 0:00:07]}  Kf6 {[%clk 0:00:05]} 97. e5+ {[%clk 0:00:08]}  Ke6 {[%clk 0:00:06]} 98. Ke4 {[%clk 0:00:08]}  Ke7 {[%clk 0:00:06]} 99. Kf5 {[%clk 0:00:09]}  Kf7 {[%clk 0:00:06]} 100. e6+ {[%clk 0:00:09]}  Kg7 {[%clk 0:00:07]} 101. Ke5 {[%clk 0:00:08]}  Kf8 {[%clk 0:00:05]} 102. Kf6 {[%clk 0:00:07]}  Ke8 {[%clk 0:00:04]} 103. e7 {[%clk 0:00:08]} 1-0


[Site "https://www.chess.com"]

[Event "Titled Tuesday Blitz March 21 Early 2023"]
[White "Bogaudinov, Rushan"]
[Black "Kopczynski, Michal"]
[WhiteFideId "4129288"]
[BlackFideId "1124200"]
[WhiteElo "1949"]
[BlackElo "2212"]
[Result "1-0"]
[Round "09"]
[TimeControl "180+2"]
[Date "2023.03.21"]
[WhiteClock "0:00:04"]
[BlackClock "0:00:03"]

1. d4 {[%clk 0:02:59]}  Nf6 {[%clk 0:02:59]} 2. Nf3 {[%clk 0:02:59]}  g6 {[%clk 0:03:00]} 3. e3 {[%clk 0:02:59]}  Bg7 {[%clk 0:03:00]} 4. Be2 {[%clk 0:02:59]}  d6 {[%clk 0:03:01]} 5. O-O {[%clk 0:02:59]}  O-O {[%clk 0:03:02]} 6. b3 {[%clk 0:02:59]}  Nfd7 {[%clk 0:03:02]} 7. Bb2 {[%clk 0:03:00]}  Nc6 {[%clk 0:03:03]} 8. c4 {[%clk 0:03:00]}  e5 {[%clk 0:03:03]} 9. dxe5 {[%clk 0:02:59]}  Ndxe5 {[%clk 0:03:04]} 10. Nxe5 {[%clk 0:02:59]}  Nxe5 {[%clk 0:03:04]} 11. Qc1 {[%clk 0:02:59]}  Qh4 {[%clk 0:03:01]} 12. g3 {[%clk 0:02:58]}  Qh3 {[%clk 0:03:00]} 13. Nd2 {[%clk 0:02:52]}  Bg4 {[%clk 0:03:00]} 14. f3 {[%clk 0:02:42]}  Bd7 {[%clk 0:02:56]} 15. Rf2 {[%clk 0:02:37]}  Rae8 {[%clk 0:02:54]} 16. Bf1 {[%clk 0:02:35]}  Qh6 {[%clk 0:02:52]} 17. e4 {[%clk 0:02:04]}  Bh3 {[%clk 0:02:34]} 18. Bxh3 {[%clk 0:01:52]}  Nd3 {[%clk 0:01:48]} 19. Bxg7 {[%clk 0:01:42]}  Qxg7 {[%clk 0:01:48]} 20. Qf1 {[%clk 0:01:35]}  Nxf2 {[%clk 0:01:42]} 21. Kxf2 {[%clk 0:01:36]}  Qd4+ {[%clk 0:01:40]} 22. Ke2 {[%clk 0:01:36]}  f5 {[%clk 0:01:37]} 23. Qg1 {[%clk 0:01:36]}  Qb2 {[%clk 0:01:19]} 24. Rb1 {[%clk 0:01:24]}  Qxa2 {[%clk 0:01:19]} 25. Qe3 {[%clk 0:01:17]}  fxe4 {[%clk 0:01:15]} 26. fxe4 {[%clk 0:01:16]}  Re5 {[%clk 0:01:11]} 27. Rf1 {[%clk 0:01:09]}  Rfe8 {[%clk 0:01:04]} 28. Bg2 {[%clk 0:01:09]}  a5 {[%clk 0:00:53]} 29. Qf4 {[%clk 0:01:09]}  R5e7 {[%clk 0:00:49]} 30. h4 {[%clk 0:01:07]}  a4 {[%clk 0:00:28]} 31. bxa4 {[%clk 0:01:07]}  Qxa4 {[%clk 0:00:29]} 32. h5 {[%clk 0:01:02]}  gxh5 {[%clk 0:00:25]} 33. Qg5+ {[%clk 0:00:57]}  Rg7 {[%clk 0:00:25]} 34. Qd5+ {[%clk 0:00:56]}  Kh8 {[%clk 0:00:25]} 35. Qxh5 {[%clk 0:00:52]}  Qd7 {[%clk 0:00:22]} 36. Bh3 {[%clk 0:00:49]}  Qe7 {[%clk 0:00:22]} 37. Bf5 {[%clk 0:00:45]}  Rxg3 {[%clk 0:00:20]} 38. Rh1 {[%clk 0:00:45]}  Rg7 {[%clk 0:00:20]} 39. Nf3 {[%clk 0:00:43]}  c6 {[%clk 0:00:18]} 40. Qh4 {[%clk 0:00:26]}  Qxh4 {[%clk 0:00:18]} 41. Rxh4 {[%clk 0:00:26]}  d5 {[%clk 0:00:18]} 42. cxd5 {[%clk 0:00:26]}  cxd5 {[%clk 0:00:19]} 43. Ke3 {[%clk 0:00:24]}  dxe4 {[%clk 0:00:19]} 44. Bxe4 {[%clk 0:00:23]}  b5 {[%clk 0:00:18]} 45. Nd4 {[%clk 0:00:21]}  b4 {[%clk 0:00:16]} 46. Nf5 {[%clk 0:00:21]}  Rg1 {[%clk 0:00:15]} 47. Kf2 {[%clk 0:00:21]}  Rg5 {[%clk 0:00:13]} 48. Nd6 {[%clk 0:00:20]}  Re7 {[%clk 0:00:13]} 49. Rf4 {[%clk 0:00:18]}  b3 {[%clk 0:00:13]} 50. Nf7+ {[%clk 0:00:16]}  Rxf7 {[%clk 0:00:13]} 51. Rxf7 {[%clk 0:00:16]}  h5 {[%clk 0:00:12]} 52. Rb7 {[%clk 0:00:15]}  Re5 {[%clk 0:00:12]} 53. Kf3 {[%clk 0:00:15]}  h4 {[%clk 0:00:09]} 54. Rh7+ {[%clk 0:00:14]}  Kg8 {[%clk 0:00:09]} 55. Rxh4 {[%clk 0:00:15]}  b2 {[%clk 0:00:08]} 56. Rh1 {[%clk 0:00:14]}  Rb5 {[%clk 0:00:08]} 57. Rb1 {[%clk 0:00:14]}  Rb4 {[%clk 0:00:08]} 58. Ke3 {[%clk 0:00:14]}  Kf7 {[%clk 0:00:09]} 59. Kd3 {[%clk 0:00:13]}  Ke6 {[%clk 0:00:09]} 60. Bh7 {[%clk 0:00:13]}  Ke5 {[%clk 0:00:08]} 61. Kc3 {[%clk 0:00:13]}  Rb8 {[%clk 0:00:09]} 62. Bc2 {[%clk 0:00:13]}  Kf4 {[%clk 0:00:09]} 63. Bb3 {[%clk 0:00:13]}  Rc8+ {[%clk 0:00:07]} 64. Kxb2 {[%clk 0:00:13]}  Ke3 {[%clk 0:00:08]} 65. Rh1 {[%clk 0:00:11]}  Ke4 {[%clk 0:00:08]} 66. Rh4+ {[%clk 0:00:11]}  Ke5 {[%clk 0:00:08]} 67. Bc4 {[%clk 0:00:09]}  Kf5 {[%clk 0:00:08]} 68. Kc3 {[%clk 0:00:10]}  Kg5 {[%clk 0:00:08]} 69. Rd4 {[%clk 0:00:09]}  Kf6 {[%clk 0:00:09]} 70. Kd3 {[%clk 0:00:08]}  Ke5 {[%clk 0:00:09]} 71. Re4+ {[%clk 0:00:07]}  Kf6 {[%clk 0:00:08]} 72. Kd4 {[%clk 0:00:06]}  Rd8+ {[%clk 0:00:08]} 73. Bd5 {[%clk 0:00:07]}  Rb8 {[%clk 0:00:09]} 74. Rf4+ {[%clk 0:00:06]}  Kg5 {[%clk 0:00:09]} 75. Rf1 {[%clk 0:00:05]}  Rb4+ {[%clk 0:00:09]} 76. Ke5 {[%clk 0:00:05]}  Rb8 {[%clk 0:00:10]} 77. Rg1+ {[%clk 0:00:06]}  Kh4 {[%clk 0:00:10]} 78. Be6 {[%clk 0:00:04]}  Rf8 {[%clk 0:00:10]} 79. Rg2 {[%clk 0:00:04]}  Kh5 {[%clk 0:00:08]} 80. Bf5 {[%clk 0:00:04]}  Kh4 {[%clk 0:00:07]} 81. Kf4 {[%clk 0:00:04]}  Kh5 {[%clk 0:00:03]} 82. Rh2# {[%clk 0:00:04]} 1-0


[Site "https://www.chess.com"]

[Event "Titled Tuesday Blitz March 21 Early 2023"]
[White "sebastianmarinp"]
[Black "Bas Mas, Jose Joaquin"]
[BlackFideId "22219064"]
[WhiteElo "2291"]
[BlackElo "2233"]
[Result "0-1"]
[Round "09"]
[TimeControl "180+2"]
[Date "2023.03.21"]
[WhiteClock "0:00:08"]
[BlackClock "0:00:23"]

1. e4 {[%clk 0:03:00]}  e6 {[%clk 0:03:00]} 2. d4 {[%clk 0:03:00]}  d5 {[%clk 0:03:00]} 3. Nc3 {[%clk 0:03:00]}  Nf6 {[%clk 0:03:00]} 4. e5 {[%clk 0:02:58]}  Nfd7 {[%clk 0:03:00]} 5. f4 {[%clk 0:02:59]}  c5 {[%clk 0:03:00]} 6. Nf3 {[%clk 0:02:59]}  Nc6 {[%clk 0:03:01]} 7. Be3 {[%clk 0:02:59]}  Be7 {[%clk 0:02:58]} 8. Qd2 {[%clk 0:02:57]}  O-O {[%clk 0:02:57]} 9. Qf2 {[%clk 0:02:51]}  Rb8 {[%clk 0:02:34]} 10. Be2 {[%clk 0:02:24]}  a6 {[%clk 0:02:31]} 11. O-O {[%clk 0:02:22]}  Qc7 {[%clk 0:02:30]} 12. dxc5 {[%clk 0:02:10]}  Nb4 {[%clk 0:02:23]} 13. Nd4 {[%clk 0:02:05]}  Bxc5 {[%clk 0:02:16]} 14. Rac1 {[%clk 0:01:56]}  Nc6 {[%clk 0:02:01]} 15. Nxe6 {[%clk 0:01:36]}  fxe6 {[%clk 0:01:40]} 16. Bxc5 {[%clk 0:01:35]}  Nxc5 {[%clk 0:01:35]} 17. Qxc5 {[%clk 0:01:36]}  Bd7 {[%clk 0:01:34]} 18. Bd3 {[%clk 0:01:30]}  Rbc8 {[%clk 0:01:28]} 19. Ne2 {[%clk 0:01:22]}  Qd8 {[%clk 0:01:18]} 20. Qe3 {[%clk 0:01:16]}  Nb4 {[%clk 0:01:15]} 21. a3 {[%clk 0:01:14]}  Nxd3 {[%clk 0:01:04]} 22. cxd3 {[%clk 0:01:15]}  Qa5 {[%clk 0:01:00]} 23. Nd4 {[%clk 0:01:07]}  Qb6 {[%clk 0:00:59]} 24. b4 {[%clk 0:01:04]}  Bb5 {[%clk 0:00:57]} 25. Rfd1 {[%clk 0:00:43]}  Ba4 {[%clk 0:00:52]} 26. Re1 {[%clk 0:00:41]}  a5 {[%clk 0:00:53]} 27. Nf5 {[%clk 0:00:32]}  Qxe3+ {[%clk 0:00:38]} 28. Nxe3 {[%clk 0:00:33]}  Rxc1 {[%clk 0:00:33]} 29. Rxc1 {[%clk 0:00:34]}  axb4 {[%clk 0:00:34]} 30. axb4 {[%clk 0:00:32]}  Rxf4 {[%clk 0:00:35]} 31. Rc8+ {[%clk 0:00:28]}  Kf7 {[%clk 0:00:34]} 32. Rc7+ {[%clk 0:00:26]}  Kg6 {[%clk 0:00:34]} 33. Rxb7 {[%clk 0:00:26]}  Rd4 {[%clk 0:00:32]} 34. Kf2 {[%clk 0:00:21]}  Rxd3 {[%clk 0:00:32]} 35. Rb6 {[%clk 0:00:20]}  d4 {[%clk 0:00:30]} 36. Nc4 {[%clk 0:00:17]}  Bb3 {[%clk 0:00:26]} 37. Nd6 {[%clk 0:00:14]}  Bd5 {[%clk 0:00:24]} 38. g3 {[%clk 0:00:08]}  Rd2+ {[%clk 0:00:24]} 39. Ke1 {[%clk 0:00:08]}  Rxh2 {[%clk 0:00:23]} 40. b5 {[%clk 0:00:08]}  d3 {[%clk 0:00:22]} 41. Ra6 {[%clk 0:00:08]}  d2+ {[%clk 0:00:23]} 0-1


[Site "https://www.chess.com"]

[Event "Titled Tuesday Blitz March 21 Early 2023"]
[White "Delorme, Alban"]
[Black "Fernandez Garcia, Gumersindo"]
[WhiteFideId "623636"]
[BlackFideId "24516740"]
[WhiteElo "2196"]
[BlackElo "2093"]
[Result "0-1"]
[Round "09"]
[TimeControl "180+2"]
[Date "2023.03.21"]
[WhiteClock "0:00:49"]
[BlackClock "0:01:32"]

1. e4 {[%clk 0:03:00]}  d6 {[%clk 0:02:57]} 2. d4 {[%clk 0:03:00]}  Nf6 {[%clk 0:02:58]} 3. Nc3 {[%clk 0:03:00]}  e5 {[%clk 0:02:58]} 4. Nf3 {[%clk 0:02:59]}  Nbd7 {[%clk 0:02:58]} 5. a3 {[%clk 0:02:55]}  Be7 {[%clk 0:02:58]} 6. Bc4 {[%clk 0:02:55]}  O-O {[%clk 0:02:58]} 7. O-O {[%clk 0:02:55]}  c6 {[%clk 0:02:58]} 8. dxe5 {[%clk 0:02:54]}  dxe5 {[%clk 0:02:59]} 9. h3 {[%clk 0:02:54]}  Qc7 {[%clk 0:02:58]} 10. Qe2 {[%clk 0:02:52]}  a5 {[%clk 0:02:57]} 11. Bg5 {[%clk 0:02:50]}  b5 {[%clk 0:02:56]} 12. Bb3 {[%clk 0:02:48]}  Ba6 {[%clk 0:02:57]} 13. Qe3 {[%clk 0:02:40]}  Bc5 {[%clk 0:02:52]} 14. Qd2 {[%clk 0:02:37]}  Rad8 {[%clk 0:02:52]} 15. Rfe1 {[%clk 0:02:32]}  h6 {[%clk 0:02:47]} 16. Be3 {[%clk 0:02:30]}  Nb6 {[%clk 0:02:36]} 17. Qc1 {[%clk 0:02:25]}  Bd4 {[%clk 0:02:29]} 18. Ne2 {[%clk 0:02:21]}  c5 {[%clk 0:02:26]} 19. c3 {[%clk 0:02:18]}  Bxe3 {[%clk 0:02:24]} 20. Qxe3 {[%clk 0:02:19]}  c4 {[%clk 0:02:25]} 21. Bc2 {[%clk 0:02:18]}  Bb7 {[%clk 0:02:23]} 22. Ng3 {[%clk 0:02:17]}  Nbd7 {[%clk 0:02:14]} 23. Rad1 {[%clk 0:02:11]}  Nc5 {[%clk 0:02:06]} 24. Nh4 {[%clk 0:02:02]}  Rxd1 {[%clk 0:01:55]} 25. Rxd1 {[%clk 0:02:00]}  Rd8 {[%clk 0:01:55]} 26. Re1 {[%clk 0:01:58]}  Nd3 {[%clk 0:01:47]} 27. Rb1 {[%clk 0:01:30]}  Qc5 {[%clk 0:01:40]} 28. Qf3 {[%clk 0:01:23]}  Nf4 {[%clk 0:01:36]} 29. Ngf5 {[%clk 0:01:20]}  Rd2 {[%clk 0:01:33]} 30. Qg3 {[%clk 0:00:49]}  Ne2+ {[%clk 0:01:32]} 0-1


[Site "https://www.chess.com"]